bitfinex/quotes_ETHUSD_20251120
["timestamp","ask_amount","ask_price","bid_price","bid_amount"]
[1763657404115,0.5472037,2864.8,2863.2,0.129]
[1763657404600,0.5472037,2864.8,2863.3,0.4921]
[1763657404757,0.4314,2864.7,2863.0,0.1333]
[1763657405260,0.5472037,2864.8,2863.1,0.129]
[1763657405460,0.90699264,2864.7,2863.2,0.129]
[1763657405803,0.5472037,2864.8,2863.3,0.129]
[1763657405988,0.5472037,2864.8,2863.5,7.33902701]
[1763657406195,0.5472037,2864.8,2864.1,0.405504]
[1763657406400,0.5472037,2864.8,2863.6,1.6315067]
[1763657406401,0.5472037,2864.8,2863.6,1.2260027]
[1763657406709,0.5472037,2864.8,2863.7,0.534504]
[1763657406997,0.5472037,2864.8,2863.7,1.026604]
[1763657407405,5.30864817,2867.5,2863.7,1.026604]
[1763657407406,0.87381929,2867.3,2864.8,0.405504]
[1763657407560,3.48722271,2867.7,2865.3,0.405504]
[1763657407764,3.48888577,2867.9,2864.9,0.2811]
[1763657407765,0.4814,2867.3,2865.8,0.405504]
[1763657407967,1.02885717,2867.1,2865.9,0.129]
[1763657408160,1.02885717,2867.1,2866.0,0.129]
[1763657408367,0.4821,2867.0,2866.1,0.129]
[1763657408571,0.54745717,2867.1,2866.1,0.129]
[1763657408873,0.6761,2867.8,2866.2,0.405504]
[1763657409068,0.5473657,2867.4,2866.3,0.129]
[1763657409274,0.5473657,2867.4,2864.0,0.90699264]
[1763657409275,0.5473657,2867.4,2864.8,7.33902701]
[1763657409474,0.4821,2867.3,2864.9,0.8679027]
[1763657409711,0.4821,2867.3,2865.3,7.33902701]
[1763657410008,0.4821,2867.3,2865.4,0.405504]
[1763657410168,0.5473657,2867.4,2865.9,0.405504]
[1763657410169,0.4821,2867.2,2865.9,0.405504]
[1763657410368,0.4821,2867.2,2865.4,0.1521]
[1763657410369,0.4821,2867.2,2866.0,0.129]
[1763657410569,0.1854,2867.1,2865.3,7.33902701]
[1763657410815,0.1854,2867.1,2865.4,0.534504]
[1763657411113,0.1854,2867.1,2865.4,0.405504]
[1763657411114,0.90699264,2866.9,2865.4,0.405504]
[1763657411269,0.1854,2865.5,2863.8,7.33902701]
[1763657411468,0.1854,2865.5,2863.9,0.129]
[1763657411733,0.6675,2865.5,2864.0,0.0349162]
[1763657411883,0.4821,2866.1,2864.3,7.33902701]
[1763657412196,0.4821,2866.1,2864.4,0.129]
[1763657412403,0.4821,2866.1,2863.1,7.33902701]
[1763657412606,0.4821,2866.1,2863.2,0.129]
[1763657412792,0.4821,2866.1,2863.7,6.25398939]
[1763657412977,0.4821,2866.1,2863.2,0.2811]
[1763657412978,0.405504,2865.9,2863.2,6.40608939]
[1763657413180,2.18631593,2865.9,2863.3,0.129]
[1763657413391,0.87381929,2865.7,2863.4,0.129]
[1763657413782,0.6675,2865.6,2863.4,0.129]
[1763657413986,0.6675,2865.6,2863.0,6.25398939]
[1763657414335,0.1854,2863.1,2861.5,0.1521]
[1763657414539,0.4821,2863.0,2862.5,0.001]
[1763657415196,1.09239264,2863.5,2862.5,0.001]
[1763657415400,0.90699264,2864.2,2862.5,0.001]
[1763657415615,3.97338041,2864.3,2862.7,0.405504]
[1763657415616,0.4821,2864.3,2862.7,0.405504]
[1763657415796,0.4821,2864.3,2862.5,0.001]
[1763657415797,0.4821,2864.2,2862.5,0.001]
[1763657416992,0.4821,2864.2,2862.7,0.405504]
[1763657417191,0.1854,2864.4,2862.8,0.66594934]
[1763657417401,0.4821,2864.2,2862.5,0.001]
[1763657417627,0.4821,2864.2,2862.6,0.129]
[1763657417839,0.4821,2864.2,2862.5,0.001]
[1763657417986,0.405504,2864.1,2862.5,0.001]
[1763657418187,0.4821,2864.2,2862.5,0.001]
[1763657418400,0.4821,2864.1,2862.5,0.001]
[1763657419087,0.90699264,2863.9,2862.5,0.001]
[1763657419313,0.54813796,2863.8,2862.5,0.001]
[1763657419517,1.03023796,2863.8,2862.5,0.001]
[1763657419927,1.03023796,2863.8,2862.2,0.001]
[1763657419928,0.405504,2863.6,2862.2,0.001]
[1763657420300,1.35591929,2863.7,2861.5,0.1541]
[1763657420301,0.90699264,2863.7,2861.5,0.1541]
[1763657420643,0.4821,2863.6,2862.1,6.25398939]
[1763657420785,0.4821,2863.6,2862.3,0.405504]
[1763657420990,0.73354773,2864.4,2862.7,0.405504]
[1763657420991,0.4821,2864.1,2862.7,0.405504]
[1763657421188,0.4821,2864.3,2862.7,0.129]
[1763657421431,1.76608957,2865.6,2863.2,0.405504]
[1763657421432,0.4821,2864.9,2863.2,0.405504]
[1763657421591,0.4821,2864.9,2863.6,6.25398939]
[1763657421789,0.4821,2865.4,2863.7,0.129]
[1763657422037,1.38909264,2865.5,2863.7,0.129]
[1763657422196,0.4821,2865.5,2863.0,0.129]
[1763657422389,0.4821,2865.4,2863.4,0.405504]
[1763657422895,0.4821,2865.4,2863.9,0.405504]
[1763657423089,0.002,2865.8,2864.8,6.25398939]
[1763657423404,0.002,2865.8,2865.3,6.25398939]
[1763657423987,0.002,2865.8,2865.4,0.405504]
[1763657424189,0.0012,2865.8,2864.9,0.129]
[1763657424660,0.0012,2865.8,2865.3,0.405504]
[1763657424949,0.0012,2865.8,2865.2,6.25398939]
[1763657425153,0.0012,2865.8,2864.9,0.129]
[1763657425350,0.0012,2865.8,2865.0,0.405504]
[1763657425846,0.0012,2865.8,2864.9,0.129]
[1763657426052,0.4833,2865.8,2864.9,0.129]
[1763657426235,0.0012,2865.8,2864.9,0.129]
[1763657426434,0.0012,2865.8,2865.0,0.405504]
[1763657426651,0.0012,2865.8,2864.9,0.76729894]
[1763657427027,0.0012,2865.8,2864.9,0.129]
[1763657427739,0.0012,2865.8,2865.7,6.25398939]
[1763657427939,0.002,2866.1,2865.8,0.405504]
[1763657428252,0.4821,2867.6,2866.0,0.559604]
[1763657428253,0.54741946,2867.1,2866.0,0.559604]
[1763657428413,0.54741946,2867.1,2866.1,0.405504]
[1763657428614,1.21491946,2867.1,2865.7,0.129]
[1763657428850,0.90699264,2867.0,2865.7,0.129]
[1763657429052,1.38909264,2867.0,2865.7,0.129]
[1763657429267,1.38909264,2867.0,2864.7,0.1521]
[1763657429268,0.90699264,2866.8,2864.7,0.1521]
[1763657429563,0.90699264,2866.8,2864.5,0.129]
[1763657429858,0.4509,2866.7,2864.5,0.129]
[1763657430019,0.405504,2866.5,2864.5,0.129]
[1763657430212,1.27932329,2866.5,2863.9,0.129]
[1763657430412,0.405504,2866.3,2863.9,0.129]
[1763657430614,0.1,2864.8,2863.9,0.129]
[1763657430942,0.4509,2866.2,2863.9,0.129]
[1763657431125,0.1,2864.6,2863.9,0.129]
[1763657431344,0.1,2864.9,2863.9,0.76130449]
[1763657432066,0.1,2864.9,2863.9,0.129]
[1763657432067,0.4509,2864.8,2863.9,0.129]
[1763657432295,0.4509,2864.8,2864.0,0.0349162]
[1763657432445,0.4509,2864.8,2863.6,0.129]
[1763657432446,0.1,2865.1,2863.6,0.129]
[1763657432654,0.1909,2865.5,2863.9,6.25398939]
[1763657432853,0.1,2865.1,2863.6,0.129]
[1763657433100,0.4509,2865.4,2864.0,0.405504]
[1763657433101,0.1,2865.2,2864.0,0.405504]
[1763657433253,2.08782819,2866.8,2863.6,0.76729894]
[1763657433254,0.1909,2865.9,2864.5,0.405504]
[1763657433452,7.16952124,2865.9,2864.1,0.129]
[1763657433682,7.16952124,2865.9,2864.2,0.405504]
[1763657433683,0.1,2865.4,2864.2,0.405504]
[1763657433896,0.002,2864.8,2864.2,0.67884934]
[1763657434103,0.002,2864.8,2864.2,0.405504]
[1763657434265,0.002,2864.8,2864.4,0.405504]
[1763657434469,0.002,2864.8,2864.6,0.405504]
[1763657434666,0.002,2864.8,2864.7,0.557604]
[1763657434867,0.002,2864.8,2864.7,0.129]
[1763657436203,0.87381929,2867.5,2864.7,0.686604]
[1763657436403,0.4509,2867.0,2865.6,0.405504]
[1763657436694,0.1,2866.5,2865.7,0.129]
[1763657437286,0.4509,2866.4,2865.7,0.129]
[1763657437455,0.4509,2867.0,2865.7,0.129]
[1763657437856,0.1,2866.5,2865.7,0.129]
[1763657438093,0.1,2866.4,2865.1,0.551604]
[1763657438403,0.4509,2866.6,2865.2,0.129]
[1763657438614,0.1,2865.0,2864.5,0.129]
[1763657438960,0.1,2865.5,2864.5,0.129]
[1763657439159,10.46426451,2866.9,2864.5,0.129]
[1763657439160,0.465,2866.3,2864.5,6.38298939]
[1763657439494,0.1,2866.8,2865.6,0.405504]
[1763657439726,0.465,2867.0,2865.8,0.405504]
[1763657439854,0.1,2866.8,2865.2,6.25398939]
[1763657440060,0.465,2867.0,2865.3,0.534504]
[1763657440260,0.1,2866.8,2865.3,0.680604]
[1763657440462,0.1854,2867.1,2865.8,0.405504]
[1763657440773,0.1854,2867.1,2865.9,0.66594934]
[1763657440997,0.1,2866.9,2866.0,0.129]
[1763657441292,0.465,2867.6,2866.0,0.129]
[1763657441594,0.1,2866.8,2866.0,0.129]
[1763657441779,0.90699264,2867.5,2865.4,6.65949339]
[1763657441987,3.95227927,2867.6,2865.6,0.405504]
[1763657441988,0.1,2867.2,2865.6,0.405504]
[1763657442158,0.1,2867.5,2866.0,0.405504]
[1763657442366,0.1,2867.2,2866.1,0.129]
[1763657442560,0.465,2867.6,2866.1,0.129]
[1763657442561,0.465,2867.6,2866.2,0.405504]
[1763657442763,0.465,2867.6,2865.7,0.1461]
[1763657443102,0.1,2866.8,2865.8,0.534504]
[1763657443301,0.1,2866.8,2865.8,0.129]
[1763657443550,0.1,2866.7,2865.8,0.129]
[1763657443845,0.002,2868.5,2866.6,6.25398939]
[1763657444003,0.002,2868.5,2867.8,0.405504]
[1763657444339,0.002,2868.5,2866.8,0.90699264]
[1763657444340,0.002,2868.5,2866.8,1.09055104]
[1763657444542,0.002,2868.5,2866.0,0.90699264]
[1763657444543,0.467,2868.5,2866.9,6.38298939]
[1763657444835,0.002,2868.5,2866.9,6.38298939]
[1763657445040,0.467,2868.2,2866.9,6.38298939]
[1763657445209,0.002,2868.2,2867.5,6.25398939]
[1763657445409,0.002,2868.2,2867.6,0.534504]
[1763657445619,0.002,2868.2,2867.6,0.129]
[1763657446549,0.002,2868.2,2867.8,0.405504]
[1763657446698,0.002,2868.2,2865.8,1.24423976]
[1763657446699,0.6611,2868.1,2866.5,0.131]
[1763657447286,0.1961,2868.1,2866.6,0.77679894]
[1763657447491,0.1961,2868.1,2865.7,6.95848939]
[1763657447492,0.54714918,2867.8,2865.7,6.95848939]
[1763657447643,0.54714918,2867.8,2865.8,0.131]
[1763657447842,0.465,2867.7,2865.8,0.131]
[1763657448272,0.4642,2867.7,2865.8,0.131]
[1763657448578,0.4642,2867.7,2865.3,0.1298]
[1763657448881,0.405504,2867.6,2865.3,0.1298]
[1763657449066,0.4642,2867.7,2865.4,0.131]
[1763657449268,0.90699264,2867.7,2865.5,0.405504]
[1763657449485,0.54714918,2867.8,2865.5,0.405504]
[1763657449641,0.54714918,2867.8,2865.5,0.811804]
[1763657449846,0.90699264,2867.7,2865.5,0.811804]
[1763657450184,0.465,2867.7,2865.7,6.65949339]
[1763657450382,3.48608136,2868.6,2865.9,0.405504]
[1763657450584,3.48608136,2868.6,2866.1,0.405504]
[1763657450786,0.54732301,2868.0,2866.1,0.405504]
[1763657451085,10.45769859,2868.7,2866.1,0.405504]
[1763657451380,10.45915698,2868.3,2866.1,0.405504]
[1763657451588,3.48638566,2868.3,2866.3,0.405504]
[1763657451743,3.68191252,2868.8,2866.5,0.405504]
[1763657451939,7.16772504,2868.8,2866.7,0.405504]
[1763657452168,7.16772504,2868.8,2866.5,0.405504]
[1763657452372,0.90699264,2868.7,2866.6,0.13]
[1763657452581,0.405504,2868.6,2866.2,0.13]
[1763657452762,0.405504,2868.0,2866.2,0.13]
[1763657452969,3.02686716,2868.0,2866.2,0.13]
[1763657453145,6.9742302,2867.7,2866.2,0.13]
[1763657453357,0.1484,2866.3,2865.7,0.13]
[1763657453756,0.465,2866.2,2864.7,0.6553]
[1763657454057,0.90699264,2867.6,2864.7,0.6553]
[1763657454058,0.465,2866.8,2864.9,0.405504]
[1763657454379,0.54743568,2866.6,2865.1,0.405504]
[1763657454582,0.465,2866.8,2865.3,0.405504]
[1763657454744,0.1961,2867.0,2865.4,0.13]
[1763657454944,0.1961,2867.0,2865.0,0.72591934]
[1763657454945,0.54739973,2866.8,2865.5,0.5997]
[1763657455149,0.54739973,2866.8,2865.6,0.13]
[1763657455351,0.54739973,2866.8,2865.7,0.13]
[1763657455654,0.465,2866.7,2865.3,0.405504]
[1763657455860,0.465,2866.7,2865.4,0.13]
[1763657456082,0.42956575,2866.7,2865.4,0.13]
[1763657456267,0.54739973,2866.8,2865.5,0.875204]
[1763657456982,1.45439237,2866.8,2865.6,0.13]
[1763657457279,0.54739973,2866.8,2865.6,0.13]
[1763657457479,0.54739973,2866.8,2865.1,0.875204]
[1763657457702,0.54739973,2866.8,2865.2,0.5997]
[1763657457980,0.54739973,2866.8,2864.6,0.4707]
[1763657457981,1.37199264,2866.7,2864.6,0.4707]
[1763657458181,1.37199264,2866.7,2864.8,0.13]
[1763657458350,0.465,2866.6,2865.0,6.25398939]
[1763657458554,1.45439237,2866.8,2865.2,0.405504]
[1763657458861,0.54739973,2866.8,2865.3,0.03490035]
[1763657459048,1.01239973,2866.8,2865.3,0.03490035]
[1763657459242,1.01239973,2866.8,2865.3,0.4697]
[1763657459657,1.01239973,2866.8,2865.4,0.405504]
[1763657460047,0.54739973,2866.8,2865.3,0.4697]
[1763657460249,0.90699264,2866.6,2864.1,0.001]
[1763657460467,0.405504,2866.4,2864.1,0.001]
[1763657460684,0.405504,2866.4,2864.4,0.131]
[1763657460889,0.405504,2866.2,2864.4,0.001]
[1763657461202,0.1129,2864.7,2864.4,0.001]
[1763657461488,0.1129,2864.7,2863.0,0.4697]
[1763657461489,0.16032261,2864.2,2863.1,0.13]
[1763657461786,0.6611,2865.0,2863.2,0.03492595]
[1763657461970,0.90699264,2864.8,2863.2,0.13]
[1763657462431,0.90699264,2864.8,2862.1,6.25498939]
[1763657462432,0.405504,2864.6,2862.1,0.001]
[1763657462744,0.0771,2863.3,2862.1,0.001]
[1763657463101,0.465,2863.2,2862.1,0.001]
[1763657463302,0.0771,2863.3,2862.1,0.001]
[1763657463531,0.1961,2863.6,2862.1,0.4707]
[1763657463718,0.465,2863.3,2862.1,0.001]
[1763657463918,0.465,2863.3,2862.1,0.131]
[1763657464206,0.465,2863.3,2862.1,0.001]
[1763657464639,0.405504,2863.2,2862.1,0.001]
[1763657464819,0.405504,2863.0,2862.1,0.001]
[1763657465032,0.405504,2863.0,2859.6,0.1856]
[1763657465204,0.465,2863.1,2859.7,0.13]
[1763657465205,0.95388396,2862.8,2859.7,0.13]
[1763657465404,0.95388396,2862.8,2859.7,1.50669264]
[1763657465405,7.53463425,2862.8,2859.7,1.50669264]
[1763657465605,0.405504,2861.9,2859.0,0.17]
[1763657465839,0.71013037,2861.8,2859.1,0.13]
[1763657466246,0.71013037,2861.8,2859.2,0.13]
[1763657466247,0.947604,2861.7,2859.2,0.13]
[1763657466450,0.71013037,2861.6,2859.3,0.16497359]
[1763657466608,0.465,2862.5,2860.0,0.90699264]
[1763657466810,0.1961,2862.7,2861.0,0.405504]
[1763657467113,0.465,2862.6,2861.1,0.13]
[1763657467342,0.465,2862.6,2861.2,0.4697]
[1763657467848,0.465,2862.6,2861.3,0.13]
[1763657468158,0.1961,2864.3,2862.5,0.1856]
[1763657468311,0.54805459,2863.6,2862.6,0.64395894]
[1763657468511,0.54805459,2863.6,2860.1,0.7160982]
[1763657468717,0.4993,2863.5,2860.9,0.13]
[1763657468926,0.4993,2863.5,2861.0,0.44045681]
[1763657469146,0.405504,2863.4,2861.0,0.405504]
[1763657469324,0.405504,2863.4,2860.8,0.1856]
[1763657469325,0.405504,2863.2,2860.8,0.1856]
[1763657469549,0.90699264,2863.2,2860.9,0.6034]
[1763657469799,0.4993,2863.1,2861.0,0.405504]
[1763657469931,0.4993,2863.1,2861.1,0.13]
[1763657470114,0.405504,2863.0,2860.4,0.4734]
[1763657470318,0.405504,2863.0,2861.5,0.17]
[1763657470544,0.4993,2862.9,2861.5,0.17]
[1763657470758,0.4993,2862.9,2860.4,0.4734]
[1763657470759,0.405504,2862.8,2860.4,0.4734]
[1763657470931,0.0771,2861.6,2859.4,0.17]
[1763657471134,0.0771,2861.6,2859.7,0.13]
[1763657471487,0.002,2861.9,2861.5,6.45238939]
[1763657471617,0.002,2861.9,2861.6,0.77523894]
[1763657471816,0.002,2862.2,2861.8,0.405504]
[1763657472146,0.0012,2862.5,2862.2,0.405504]
[1763657472350,0.0012,2862.5,2862.4,0.405504]
[1763657472530,3.07325595,2866.4,2862.4,0.405504]
[1763657472531,0.4993,2864.9,2863.4,6.25398939]
[1763657472729,0.4993,2865.6,2864.0,0.405504]
[1763657472942,0.4993,2865.6,2864.1,0.131]
[1763657473143,0.4993,2866.2,2864.2,0.405504]
[1763657473366,3.9883527,2866.2,2864.3,0.131]
[1763657473593,3.9883527,2866.2,2863.8,0.17]
[1763657473594,10.9664581,2866.2,2863.8,0.17]
[1763657473775,0.1,2864.6,2864.0,0.405504]
[1763657474089,0.4993,2866.1,2864.1,0.72638934]
[1763657474246,0.1,2864.7,2864.1,0.72638934]
[1763657474581,0.1,2865.0,2864.2,0.131]
[1763657474889,0.4993,2866.1,2864.1,0.72638934]
[1763657475194,0.1,2865.0,2864.3,0.131]
[1763657475353,0.1,2865.0,2863.8,0.17]
[1763657475354,0.1,2864.6,2864.4,0.13]
[1763657475556,10.46791581,2865.9,2864.3,0.13]
[1763657475756,3.48833152,2866.8,2864.3,0.13]
[1763657475757,0.4993,2867.5,2864.4,0.405504]
[1763657475994,0.18,2867.8,2864.8,0.405504]
[1763657475995,0.4993,2867.4,2864.8,0.405504]
[1763657476157,0.1,2866.4,2865.3,1.31249664]
[1763657476362,0.1,2867.3,2866.3,0.405504]
[1763657476700,0.002,2869.0,2867.3,0.405504]
[1763657476843,0.002,2869.0,2867.7,7.34254139]
[1763657477045,0.1,2868.5,2867.8,0.405504]
[1763657477353,0.002,2869.0,2868.6,0.591304]
[1763657477754,0.002,2869.0,2868.6,1.064704]
[1763657477942,0.002,2869.0,2868.6,0.6592]
[1763657478142,0.002,2869.0,2868.0,0.6718]
[1763657478405,0.002,2869.0,2868.1,0.132]
[1763657478705,0.002,2869.0,2866.4,0.4734]
[1763657478706,0.1,2867.3,2866.4,0.4734]
[1763657479004,0.4993,2868.4,2866.5,7.47454139]
[1763657479151,0.54714524,2868.6,2866.6,1.70178678]
[1763657479343,0.1,2868.2,2867.0,0.405504]
[1763657479575,0.54714524,2868.6,2866.7,0.4734]
[1763657479776,0.54714524,2868.6,2867.2,0.405504]
[1763657479979,0.1,2868.3,2867.2,0.405504]
[1763657480162,0.54714524,2868.6,2868.0,1.31249664]
[1763657480361,0.54714524,2868.6,2868.5,0.405504]
[1763657480886,0.4993,2871.2,2868.7,0.405504]
[1763657481134,0.002,2871.4,2869.4,0.405504]
[1763657481418,0.002,2871.4,2870.4,0.405504]
[1763657481726,0.002,2871.4,2870.6,0.405504]
[1763657481881,0.002,2871.4,2870.7,0.878904]
[1763657482081,0.002,2871.4,2870.7,1.010904]
[1763657482304,0.002,2871.4,2870.3,7.34254139]
[1763657482489,0.002,2871.4,2870.4,1.010904]
[1763657482689,0.002,2871.4,2870.6,0.405504]
[1763657483179,0.002,2871.4,2870.7,0.878904]
[1763657483415,0.002,2871.4,2870.8,0.405504]
[1763657483718,3.47940181,2874.1,2870.8,0.405504]
[1763657483719,3.47896882,2874.5,2871.4,1.31249664]
[1763657483918,0.4993,2874.1,2872.5,1.31249664]
[1763657484092,0.1,2874.1,2872.9,7.34254139]
[1763657484294,0.1,2874.5,2873.4,7.34254139]
[1763657484478,0.5013,2875.2,2873.5,0.405504]
[1763657484679,0.6793,2874.5,2873.0,0.405504]
[1763657484991,0.6793,2874.5,2869.8,0.05]
[1763657484992,1.58629264,2874.5,2872.2,0.131]
[1763657485193,0.1,2873.1,2872.0,0.131]
[1763657485494,0.1,2873.1,2872.1,0.405504]
[1763657485822,0.4993,2874.3,2872.4,7.34254139]
[1763657486006,0.1,2873.8,2872.5,1.31249664]
[1763657486183,0.1,2873.8,2872.5,0.405504]
[1763657486384,0.1,2873.8,2871.9,0.90699264]
[1763657486385,0.5993,2873.8,2871.9,0.90699264]
[1763657486585,0.1,2873.3,2872.0,0.132]
[1763657486786,0.4993,2873.8,2872.3,7.34254139]
[1763657487083,0.1,2873.3,2872.1,7.74804539]
[1763657487323,0.4993,2873.8,2872.3,0.405504]
[1763657487623,0.1,2873.6,2872.3,0.405504]
[1763657487791,3.47910795,2874.3,2872.4,0.131]
[1763657487993,0.1,2873.7,2872.6,0.405504]
[1763657488181,0.1,2874.1,2872.6,1.31249664]
[1763657488386,0.1,2874.1,2872.8,0.405504]
[1763657488595,0.4993,2874.4,2872.8,0.405504]
[1763657488596,0.1,2873.5,2872.9,0.131]
[1763657489203,0.1,2873.5,2870.2,3.48402902]
[1763657489204,0.1,2873.0,2871.5,7.34254139]
[1763657489428,0.4993,2873.4,2871.6,0.131]
[1763657489630,0.1,2872.7,2871.6,0.131]
[1763657489935,0.1,2872.7,2871.6,0.92569414]
[1763657490098,0.1,2873.3,2872.0,7.34254139]
[1763657490299,0.1,2873.4,2872.1,1.31249664]
[1763657490498,0.1,2873.4,2872.1,0.90699264]
[1763657490727,0.1,2872.7,2872.2,0.131]
[1763657490951,0.1,2872.7,2869.7,1.256]
[1763657490952,0.4671,2873.4,2870.5,7.34254139]
[1763657490953,0.198,2872.3,2870.5,7.34254139]
[1763657491148,0.198,2872.3,2869.7,1.256]
[1763657491149,0.1,2871.2,2870.6,0.131]
[1763657491464,0.1,2871.2,2869.7,1.256]
[1763657491465,3.676,2872.1,2870.7,0.131]
[1763657491738,0.1,2870.8,2870.6,0.131]
[1763657492102,0.5671,2870.7,2870.6,0.131]
[1763657492380,0.5671,2870.7,2868.9,7.34254139]
[1763657492502,0.4671,2870.7,2868.9,7.34254139]
[1763657492808,0.4671,2870.7,2869.3,0.1668517]
[1763657493008,0.1,2870.5,2869.4,7.34254139]
[1763657493223,0.198,2871.2,2869.5,0.74745414]
[1763657493433,0.1,2870.7,2869.5,0.74745414]
[1763657493736,0.1,2871.9,2870.1,7.34254139]
[1763657493898,0.1,2871.9,2870.3,0.405504]
[1763657493899,0.1,2871.2,2870.3,0.405504]
[1763657494103,0.4671,2871.9,2870.3,0.405504]
[1763657494104,0.1,2871.5,2870.3,0.405504]
[1763657494438,0.4671,2872.4,2870.7,1.31249664]
[1763657494640,0.1,2872.2,2871.1,7.34254139]
[1763657494942,0.002,2874.5,2872.2,0.405504]
[1763657495246,0.002,2874.8,2874.2,0.405504]
[1763657495543,0.002,2874.8,2874.2,0.132]
[1763657495841,0.4691,2874.6,2874.3,0.132]
[1763657496298,0.0012,2874.6,2874.3,0.132]
[1763657496494,10.002,2877.9,2874.8,0.0992]
[1763657496708,0.4671,2876.2,2874.9,0.132]
[1763657496936,0.4671,2876.2,2875.0,0.405504]
[1763657497146,0.4671,2876.2,2875.0,0.133]
[1763657497636,0.4691,2875.1,2873.4,0.4809]
[1763657497838,0.4691,2875.1,2873.5,0.133]
[1763657498009,0.405504,2875.0,2873.0,0.133]
[1763657498195,0.405504,2875.0,2872.5,0.132]
[1763657498399,0.3048801,2874.8,2871.1,7.34254139]
[1763657498608,0.05,2874.4,2871.2,0.73425414]
[1763657498807,0.05,2874.4,2871.3,0.132]
[1763657499008,0.4785,2874.3,2871.3,0.132]
[1763657499411,0.90699264,2874.1,2871.3,0.132]
[1763657499701,0.90699264,2874.1,2871.3,0.93695414]
[1763657499944,0.4785,2874.0,2871.4,0.6078]
[1763657500278,0.4785,2874.0,2871.8,0.405504]
[1763657500663,0.4785,2874.0,2872.0,0.405504]
[1763657501178,0.4785,2874.0,2872.4,0.405504]
[1763657501377,0.4785,2874.6,2872.6,0.405504]
[1763657501580,3.95727268,2874.6,2872.6,0.405504]
[1763657501881,3.95727268,2874.6,2872.8,0.405504]
[1763657501882,0.4785,2874.6,2872.8,0.405504]
[1763657502041,0.4785,2874.6,2873.0,0.405504]
[1763657502243,0.4785,2874.6,2873.2,0.405504]
[1763657502951,0.90699264,2874.5,2873.1,0.132]
[1763657503376,0.002,2875.1,2873.1,0.132]
[1763657503714,0.002,2875.1,2871.8,7.34254139]
[1763657503715,0.90699264,2874.3,2871.8,7.34254139]
[1763657503980,0.90699264,2874.3,2871.9,0.73425414]
[1763657504184,0.4785,2874.2,2872.2,0.90699264]
[1763657504492,0.4785,2874.2,2871.8,0.132]
[1763657504646,0.4785,2874.2,2871.9,0.4758]
[1763657504843,0.4785,2874.2,2872.2,0.405504]
[1763657505254,0.4785,2874.2,2872.1,7.34254139]
[1763657505255,0.4785,2874.2,2871.8,0.132]
[1763657505440,0.90699264,2874.0,2871.8,0.132]
[1763657505644,0.4785,2874.2,2871.8,0.132]
[1763657505645,0.4785,2874.2,2872.1,7.34254139]
[1763657505840,0.4785,2874.8,2872.7,1.31249664]
[1763657506052,0.4785,2874.8,2872.9,0.405504]
[1763657506344,0.4785,2874.8,2873.0,0.90699264]
[1763657506687,0.002,2875.1,2874.1,0.405504]
[1763657506878,0.002,2875.1,2874.3,0.405504]
[1763657507085,0.002,2875.1,2874.2,0.132]
[1763657507240,0.002,2875.1,2874.3,0.405504]
[1763657507476,0.002,2875.1,2874.2,0.87945414]
[1763657507689,0.002,2874.9,2874.3,0.405504]
[1763657508117,0.002,2874.9,2873.6,0.132]
[1763657508118,0.4785,2874.8,2873.6,0.132]
[1763657508318,0.002,2874.9,2874.7,7.34254139]
[1763657508613,0.002,2875.5,2874.9,0.405504]
[1763657508918,0.4785,2877.3,2875.6,0.405504]
[1763657509078,0.002,2877.9,2876.0,1.31249664]
[1763657509278,0.4785,2877.8,2875.8,0.405504]
[1763657510116,0.405504,2877.7,2875.8,0.405504]
[1763657510412,0.4785,2877.6,2875.7,0.132]
[1763657510817,0.4785,2877.6,2875.8,0.405504]
[1763657511017,0.4785,2877.6,2875.7,0.132]
[1763657511225,0.4785,2877.6,2875.8,0.405504]
[1763657511699,3.47457402,2878.1,2875.8,0.405504]
[1763657511700,1.16705488,2878.4,2877.6,0.405504]
[1763657511910,0.002,2878.5,2877.7,0.132]
[1763657512088,0.002,2878.5,2876.9,0.6575]
[1763657512287,0.002,2878.5,2877.1,0.405504]
[1763657512614,0.002,2878.5,2876.3,0.6575]
[1763657512809,0.002,2878.5,2875.6,7.34254139]
[1763657512810,0.1862,2878.1,2875.6,7.34254139]
[1763657512972,1.09319264,2878.1,2875.7,1.03999264]
[1763657513176,1.09319264,2878.1,2875.8,0.405504]
[1763657513177,0.4785,2878.0,2875.8,0.405504]
[1763657513513,0.90699264,2877.9,2875.8,0.881304]
[1763657513813,0.90699264,2877.8,2875.8,0.881304]
[1763657514021,0.4785,2877.8,2875.8,0.881304]
[1763657514320,0.4785,2877.8,2876.0,0.405504]
[1763657514525,0.4785,2877.8,2876.2,0.405504]
[1763657514880,0.002,2878.2,2877.3,7.34254139]
[1763657515100,0.002,2878.2,2877.4,0.133]
[1763657515330,0.002,2878.2,2877.5,0.538504]
[1763657516426,0.6647,2878.1,2876.4,0.4758]
[1763657516635,0.4785,2878.0,2876.5,0.133]
[1763657517136,0.4785,2878.0,2875.9,7.34254139]
[1763657517321,0.4785,2878.0,2876.0,1.77424678]
[1763657517523,0.4785,2878.0,2876.0,1.03999264]
[1763657517839,4.8602024,2878.0,2875.9,7.81834139]